Cogmind - Beta 14 @@@ ROGUE MODE // 2025.03.03 @ 13:45:56 Player: Scringis Result: Self-destructed Performance ------------- Evolutions (3) 1500 Regions Visited (5) 1000 Robots Destroyed (80) 400 Value Destroyed (2578) 2578 Prototype IDs (10) 200 Alien Tech Used (0) 0 Bonus (233) 233 TOTAL SCORE: 5911 Bonus ------- High Alert Combat Kills 105 Follower Combat Kills 128 Cogmind --------- Core Integrity 420/700 Matter 2/300 Energy 100/100 System Corruption 1% Temperature Cool (0) Movement Core (550) Ox10 Location -7/Factory Parts ------- > --- POWER (2) -------- (None) > --- PROPULSION (3) --- (None) > --- UTILITY (5) ------ Large Storage Unit Signal Interpreter Hardened Light Armor Plating Hacking Suite > --- WEAPON (3) ------- Improved Assault Rifle Assault Cannon > --- INVENTORY (15) --- Light Deuterium Engine Advanced Treads Advanced Assault Cannon Precision Grenade Launcher Precision Grenade Launcher Peak State ------------ > --- POWER ------------ Deuterium Engine Light Deuterium Engine > --- PROPULSION ------- Armored Treads Advanced Treads Advanced Treads > --- UTILITY ---------- Improved Heat Sink Large Storage Unit Signal Interpreter Hacking Suite > --- WEAPON ----------- Heavy EM Shotgun Autogun Precision Grenade Launcher > --- INVENTORY -------- Light Deuterium Engine Advanced Treads Particle Cannon Improved Assault Rifle Improved Assault Rifle Assault Cannon Precision Grenade Launcher [Rating: 36] Favorites ----------- Power Deuterium Engine Engine Deuterium Engine Power Core Light Nuclear Core Propulsion Light Treads Treads Light Treads Flight Unit Improved Flight Unit Utility Signal Interpreter Device Improved Heat Sink Storage Small Storage Unit Processor Signal Interpreter Hackware Hacking Suite Protection Medium Armor Plating Weapon Improved Assault Rifle Energy Gun Heavy EM Shotgun Energy Cannon Advanced Beam Cannon Ballistic Gun Improved Assault Rifle Ballistic Cannon Assault Cannon Launcher Precision Grenade Launcher Build | -11 -10 -9 -9 -8 -7 ------- Run | Yrd Mat Mat Sto Mat Fac Slots Evolved 6 | . . 2 . 2 2 Power 1 | . . . . . 1 Propulsion 1 | . . . . . 1 Utility 3 | . . 2 . 1 . Weapon 1 | . . . . 1 . Parts Attached 59 | 6 1 10 15 14 13 Power 8 | 1 . 2 3 1 1 Engine 6 | 1 . 2 1 1 1 Core 2 | . . . 2 . . Reactor . | . . . . . . Propulsion 17 | 2 . 4 4 4 3 Treads 16 | 2 . 4 3 4 3 Leg . | . . . . . . Wheel . | . . . . . . Hover . | . . . . . . Flight 1 | . . . 1 . . Utility 11 | 1 1 1 3 3 2 Device 2 | . . . . 1 1 Storage 2 | 1 . . . 1 . Processor 1 | . 1 . . . . Hackware 1 | . . 1 . . . Protection 5 | . . . 3 1 1 Artifact . | . . . . . . Weapon 23 | 2 . 3 5 6 7 Energy Gun 2 | . . . . 1 1 Energy Cannon 6 | . . 1 2 1 2 Ballistic Gun 7 | 2 . 2 1 1 1 Ballistic Cannon 7 | . . . 2 3 2 Launcher 1 | . . . . . 1 Special Weapon . | . . . . . . Impact Weapon . | . . . . . . Slashing Weapon . | . . . . . . Piercing Weapon . | . . . . . . Special Melee Weapon . | . . . . . . Unidentified Prototypes 7 | . . . 4 1 2 Parts Lost 18 | . . 4 2 3 9 Power 5 | . . 1 2 . 2 Propulsion 6 | . . 2 . 1 3 Utility 3 | . . . . 1 2 Weapon 4 | . . 1 . 1 2 Highest Loss Streak 5 | . . 2 1 1 5 To Critical Strikes . | . . . . . . Average Slot Usage (%) 88 | . 96 83 97 95 66 Engine 7 | . 14 10 5 9 6 Core 2 | . . . 5 . . Treads 19 | . 28 20 21 17 11 Device 2 | . . . . 8 2 Storage 10 | . 14 11 11 9 7 Processor 9 | . 11 11 11 9 7 Hackware 8 | . . 8 11 9 7 Protection 5 | . . . 9 8 2 Energy Cannon 5 | . . 9 6 6 2 Ballistic Gun 12 | . 28 12 11 12 7 Ballistic Cannon 3 | . . . 4 4 4 Peak Build Rating 36 | 6 7 11 19 29 36 Average Rating 18 | 4 6 9 16 25 24 On Entrance 11 | . 6 7 11 17 27 Naked Turns . | . . . . . . Heaviest Build 52 | 14 14 15 24 50 52 Greatest Support 64 | 40 40 40 40 44 64 Greatest Overweight (x) 10 | . . 4 . 1 10 Average Overweight (x) . | . . . . . 1 Largest Inventory Capacity 15 | 8 8 8 8 15 15 Average Capacity 10 | 7 8 8 8 12 15 Most Carried 9 | 3 4 4 8 8 9 Average Carried 5 | 1 1 2 6 5 5 Final Capacity 15 | 8 8 8 8 15 15 Final Carried 7 | 1 4 3 7 6 5 Class Distribution -------------------- 41% | Scavenger-Mutant 31% | Mutant 13% | Gunner 11% | Tank Dominant Class ---------------- Mutant | -10/Materials Mutant | -9/Materials Scavenger-Mutant | -9/Storage Tank | -8/Materials Gunner | -7/Factory Resources | -11 -10 -9 -9 -8 -7 ----------- Run | Yrd Mat Mat Sto Mat Fac Matter Collected 1841 | 154 163 330 569 622 3 Remotely . | . . . . . . Salvage Created 2731 | . 235 282 1127 790 297 Parts 181 | . 16 23 75 53 14 Haulers Intercepted 1 | . . . 1 . . Recyclers Shooed 1 | . . . 1 . . Parts Field Recycled . | . . . . . . Retrieved Matter . | . . . . . . Parts Self-Destructed . | . . . . . . Prevented . | . . . . . . Kills | -11 -10 -9 -9 -8 -7 ------- Run | Yrd Mat Mat Sto Mat Fac Combat Hostiles Destroyed 65 | . 5 9 21 21 9 Guns 24 | . 3 2 8 9 2 Cannons 33 | . . 6 12 12 3 AOE 5 | . 2 . . . 3 Classes Destroyed 12 | . 4 2 4 2 . Worker 3 | . . . . 2 1 Builder 2 | . . . 1 . 1 Hauler 1 | . . . 1 . . Mechanic 2 | . 1 . 1 . . Operator 2 | . 2 . . . . Watcher 5 | . 1 1 2 1 . Swarmer 18 | . . 6 . 6 6 Grunt 26 | . 5 . 9 10 2 Duelist 1 | . . . 1 . . Protector 1 | . . . 1 . . Sentry 18 | . . 3 10 4 1 Hunter 1 | . . . . 1 . Best Kill Streak 6 | . 3 3 5 6 4 Combat Bots Only 5 | . 2 3 5 5 3 Max Kills in Single Turn 4 | . 3 2 2 2 4 Gunslinging . | . . . . . . Exploded 3 | . 2 . . . 3 Melee . | . . . . . . Uniques/NPCs Destroyed . | . . . . . . Combat | -11 -10 -9 -9 -8 -7 -------- Run | Yrd Mat Mat Sto Mat Fac Hostile Shots Fired 495 | . 50 70 89 103 183 Missed 139 | . 22 14 19 24 60 Damage Taken 4653 | . 318 662 985 1208 1480 Core 744 | . 92 157 87 128 280 Absorbed by Shields . | . . . . . . Regen/Repaired (Parts) 250 | . . . 250 . . Core Remaining (%) 69 | 100 63 . 39 76 . Volleys Fired 257 | . 31 33 97 63 33 Largest 3 | . 2 2 2 3 3 Hottest 183 | . 40 83 91 135 183 Shots Fired 560 | . 62 64 194 169 71 Gun 305 | . 62 41 97 71 34 Cannon 254 | . . 23 97 98 36 Launcher 1 | . . . . . 1 Special . | . . . . . . Kinetic 400 | . 62 41 133 125 39 Thermal 153 | . . 23 61 44 25 Explosive 1 | . . . . . 1 Electromagnetic 6 | . . . . . 6 Robot Hit Streak 23 | . 8 23 14 17 7 Robot Miss Streak 4 | . 4 4 3 3 4 Penetration Max . | . . . . . . Secondary Targets . | . . . . . . Shots Hit Robots 339 | . 42 49 91 114 43 Core Hits 129 | . 13 12 44 41 19 Critical Kills 3 | . . 1 1 1 . Critical Parts Destroyed 1 | . 1 . . . . Critical Strikes 5 | . 1 1 1 1 1 Meltdown 2 | . . 1 1 . . Destroy 2 | . 1 . . 1 . Blast 1 | . . . . . 1 Melee Attacks . | . . . . . . Impact . | . . . . . . Slashing . | . . . . . . Piercing . | . . . . . . Sneak Attacks . | . . . . . . Combat Hostiles . | . . . . . . Follow-up Attacks . | . . . . . . Damage Inflicted 6645 | . 982 750 1661 2083 1169 Guns 2659 | . 542 436 720 699 262 Cannons 3210 | . . 314 934 1379 583 Explosions 764 | . 440 . . . 324 Melee . | . . . . . . Ramming 12 | . . . 7 5 . Kinetic 3905 | . 542 436 972 1507 448 Thermal 2476 | . 440 314 682 571 469 Explosive 219 | . . . . . 219 Electromagnetic 33 | . . . . . 33 Impact . | . . . . . . Slashing . | . . . . . . Piercing . | . . . . . . Highest Corruption 1 | . . . . . 1 Average Corruption 1 | . . . . . 1 Corruption Purged . | . . . . . . Corruption Blocked . | . . . . . . Effects 4 | . . . . . 4 Message Errors 2 | . . . . . 2 Heat Flow Errors 1 | . . . . . 1 Weapon Failures 1 | . . . . . 1 Overload Shots . | . . . . . . Overflow Damage 111 | . 100 . . 6 5 Projectiles 11 | . . . . 6 5 Explosions 100 | . 100 . . . . Melee . | . . . . . . Knockbacks 23 | . . . 1 16 6 Impact . | . . . . . . Kinetic 22 | . . . 1 15 6 Secondary 1 | . . . . 1 . Self-Inflicted Damage 90 | . . . . . 90 Shots 2 | . . . . . 2 Rammed 6 | . . . 5 1 . Targets Rammed 6 | . . . 5 1 . Kicked . | . . . . . . Crushed . | . . . . . . Highest Temperature 420 | . 5 87 290 330 420 Average Temperature 98 | . 4 36 99 96 148 Received Heat Transfer 1770 | . 171 180 438 666 315 Effects 6 | . . . 1 4 1 Shutdowns 1 | . . . . 1 . Energy Bleed 1 | . . . 1 . . Interference 4 | . . . . 3 1 Siege Activations . | . . . . . . Robots Corrupted . | . . . . . . Combat Hostiles . | . . . . . . Parts Fried . | . . . . . . Impact Corruptions . | . . . . . . Robots Melted 3 | . . 1 1 . 1 Combat Hostiles 3 | . . 1 1 . 1 Parts Melted 14 | . . 5 2 1 6 Heat Transferred 4019 | . 250 666 1267 1036 800 Parts Sabotaged . | . . . . . . Parts Stolen . | . . . . . . Parts Stripped . | . . . . . . Power Chain Reactions 1 | . . . . . 1 Alert | -11 -10 -9 -9 -8 -7 ------- Run | Yrd Mat Mat Sto Mat Fac Peak Influence 633 | . 201 325 472 633 354 Initial 237 | . . 6 52 163 237 Average 208 | . 62 114 235 281 219 Maximum Alert Level 2 | . 1 1 2 2 1 Low Security (%) 48 | 100 92 84 31 46 39 Level 1 45 | . 7 15 65 30 60 Level 2 5 | . . . 3 22 . Level 3 . | . . . . . . Level 4 . | . . . . . . Level 5 . | . . . . . . High Security . | . . . . . . Max Security . | . . . . . . Squads Dispatched 10 | . 2 . 4 2 2 Investigation 1 | . . . 1 . . Extermination . | . . . . . . Reinforcement 6 | . 2 . . 2 2 Assault 2 | . . . 2 . . Garrison 1 | . . . 1 . . Intercept . | . . . . . . Searches Triggered . | . . . . . . Construction Impeded 2 | . . . . 1 1 Haulers Reinforced . | . . . . . . Active Scanning Responses . | . . . . . . Cargo Convoy Interrupts . | . . . . . . Stealth | -11 -10 -9 -9 -8 -7 --------- Run | Yrd Mat Mat Sto Mat Fac Distress Signals 6 | . 1 . 2 2 1 Communications Jammed . | . . . . . . Distress Signals . | . . . . . . Times Spotted 102 | . 11 12 34 28 17 Peak Tracking Total 10 | . 2 5 10 8 6 Tactical Retreats 13 | . 3 2 2 3 3 Traps | -11 -10 -9 -9 -8 -7 ------- Run | Yrd Mat Mat Sto Mat Fac Traps Triggered 3 | . . . 3 . . Indirectly . | . . . . . . Trap Hack Attempts . | . . . . . . Triggered . | . . . . . . Disarmed . | . . . . . . Reprogrammed . | . . . . . . Reused . | . . . . . . Traps Extracted . | . . . . . . Installed . | . . . . . . Triggered . | . . . . . . Machines | -11 -10 -9 -9 -8 -7 ---------- Run | Yrd Mat Mat Sto Mat Fac Machines Disabled 8 | . 1 . 3 3 1 Max in Single Turn 1 | . 1 . 1 1 1 Garrison Access 3 | . . . 1 1 1 Machines Repaired . | . . . . . . Machines Dismantled . | . . . . . . Machines Sabotaged . | . . . . . . Overloaded Fab Kills . | . . . . . . Hacking | -11 -10 -9 -9 -8 -7 --------- Run | Yrd Mat Mat Sto Mat Fac Machines Accessed 13 | . . 1 7 4 1 Terminals 9 | . . 1 5 3 . Fabricators . | . . . . . . Repair Stations 1 | . . . 1 . . Recycling Units . | . . . . . . Scanalyzers . | . . . . . . Garrison Access 3 | . . . 1 1 1 Total Hacks 31 | . . 3 17 10 1 Successful 20 | . . 2 12 5 1 Failed 11 | . . 1 5 5 . Catastrophic . | . . . . . . Database Lockouts . | . . . . . . Manual 1 | . . . 1 . . Terminals 20 | . . 3 9 8 . Fabricators . | . . . . . . Repair Stations 7 | . . . 7 . . Recycling Units . | . . . . . . Scanalyzers . | . . . . . . Garrison Access 4 | . . . 1 2 1 Terminal Hacks 11 | . . 2 5 4 . Prototype ID Bank 3 | . . 1 2 . . Open Door 2 | . . . 2 . . Level Access Points 1 | . . . . 1 . Emergency Access Points 1 | . . . . 1 . Alert Level 1 | . . . 1 . . Locate Traps 2 | . . 1 . 1 . Zone Layout 1 | . . . . 1 . Fabricator Hacks . | . . . . . . Repair Station Hacks 6 | . . . 6 . . Scan Component 3 | . . . 3 . . Repair 3 | . . . 3 . . Recycling Unit Hacks . | . . . . . . Scanalyzer . | . . . . . . Garrison Access Hacks 3 | . . . 1 1 1 Seal Access 3 | . . . 1 1 1 Unauthorized Hacks . | . . . . . . Terminals . | . . . . . . Fabricators . | . . . . . . Repair Stations . | . . . . . . Recycling Units . | . . . . . . Scanalyzers . | . . . . . . Garrison Access . | . . . . . . Data Cores Recovered 1 | . 1 . . . . Used . | . . . . . . Hacking Detections 7 | . . 1 3 3 . Full Trace Events 2 | . . . 1 1 . Feedback Events . | . . . . . . Feedback Blocked . | . . . . . . Robot Schematics Acquired . | . . . . . . Robots Built . | . . . . . . Authchips . | . . . . . . Time . | . . . . . . Total Robot Build Rating . | . . . . . . Part Schematics Acquired . | . . . . . . Parts Built . | . . . . . . Authchips . | . . . . . . Time . | . . . . . . Total Part Build Rating . | . . . . . . Parts Repaired 3 | . . . 3 . . Time 90 | . . . 90 . . Parts Recycled . | . . . . . . Recycled Matter . | . . . . . . Retrieved Matter . | . . . . . . Retrieved Components . | . . . . . . Parts Scanalyzed . | . . . . . . Part Schematics Acquired . | . . . . . . Parts Damaged . | . . . . . . Bothacking | -11 -10 -9 -9 -8 -7 ------------ Run | Yrd Mat Mat Sto Mat Fac Used RIF Installer . | . . . . . . Robots Hacked . | . . . . . . Non-combat . | . . . . . . Combat . | . . . . . . Robot Hacks Applied . | . . . . . . Relay Couplers Released . | . . . . . . Fabnet Peak Effective % . | . . . . . . Robots Rewired . | . . . . . . Allies Hacked . | . . . . . . Hacks Repelled . | . . . . . . Allies | -11 -10 -9 -9 -8 -7 -------- Run | Yrd Mat Mat Sto Mat Fac Total Allies 2 | . . . 2 . . Largest Group 2 | . . . 2 1 . Highest-Rated Group 62 | . . . 62 31 . Highest-Rated Ally 31 | . . . 31 31 . Total Orders . | . . . . . . Ally Attacks 30 | . . . 27 3 . Total Damage 361 | . . . 340 21 . Kills 5 | . . . 5 . . Allies Corrupted . | . . . . . . Allies Melted . | . . . . . . Intel | -11 -10 -9 -9 -8 -7 ------- Run | Yrd Mat Mat Sto Mat Fac Robot Analysis Total . | . . . . . . Derelict Logs Recovered . | . . . . . . Drone Launches . | . . . . . . Drone Recoveries . | . . . . . . Exploration | -11 -10 -9 -9 -8 -7 ------------- Run | Yrd Mat Mat Sto Mat Fac Turns Passed 4499 | 78 427 449 1696 867 982 Spaces Moved 1833 | 44 202 182 775 301 329 Core 68 | 4 . 3 . . 61 Treads 1765 | 40 202 179 775 301 268 Legs . | . . . . . . Wheels . | . . . . . . Hover . | . . . . . . Flight . | . . . . . . Fastest Speed 50 | 50 160 160 160 145 145 Average Speed 176 | 150 160 161 160 185 231 Slowest Speed 550 | 160 160 250 160 245 550 Overloaded Moves . | . . . . . . Propulsion Burnouts . | . . . . . . Robots Hopped . | . . . . . . Cave-ins Triggered . | . . . . . . Exploration Rate (%) 34 | 5 43 19 95 32 12 Regions Visited 5 Branch Regions 1 Pre-discovered Areas . | . . . . . . Known Exits Taken 4 | . 1 1 1 1 . Unknown Exits Taken 1 | 1 . . . . . Scrap Searched . | . . . . . . Spaces Dug . | . . . . . . Terrain Destroyed 31 | . 13 . 2 6 10 Melee . | . . . . . . Projectile 8 | . . . 2 6 . AOE 23 | . 13 . . . 10 Terrain Rammed . | . . . . . . Walls Destroyed . | . . . . . . Machines Disabled . | . . . . . . Actions | -11 -10 -9 -9 -8 -7 --------- Run | Yrd Mat Mat Sto Mat Fac Total 2579 | 56 244 273 1035 484 487 Wait 336 | . 7 37 115 82 95 Move 1828 | 43 201 181 774 300 329 Hop . | . . . . . . Pick Up 61 | 7 4 8 19 13 10 Fast Attach . | . . . . . . Attach 31 | 6 1 5 7 5 7 Detach 2 | . . . . 1 1 Swap 29 | . . 5 9 9 6 Drop 29 | . . 4 9 10 6 Fire 257 | . 31 33 97 63 33 Melee . | . . . . . . Ram . | . . . . . . Kick . | . . . . . . Crush 6 | . . . 5 1 . Escape Stasis . | . . . . . . Rewire . | . . . . . . Trap . | . . . . . . Miscellaneous . | . . . . . . Route ------- -11/Scrapyard -10/Materials -9/Materials -9/Storage -8/Materials (discovered 3 exits: *Fac x3) -7/Factory History --------- Turn | Location | Event 40 | -11/Scrapyard | Discovered new exit (range 15) 79 | -11/Scrapyard | Entered Materials 301 | -10/Materials | Build established: Mutant 453 | -10/Materials | Discovered new exit (range 16) 504 | -10/Materials | Identified exit to Materials 506 | -10/Materials | Entered another Materials area 506 | -9/Materials | Evolved 2 slots: Utility x2 922 | -9/Materials | Discovered new exit (range 12) 944 | -9/Materials | Identified exit to Storage 955 | -9/Materials | Entered Storage 1185 | -9/Storage | Garrison activated, responded to threat 1209 | -9/Storage | Build established: Scavenger-Mutant 1473 | -9/Storage | Repaired Med. Armor Plating 1493 | -9/Storage | Core integrity fell below 50% 1525 | -9/Storage | Repaired Lgt. Treads 1561 | -9/Storage | Repaired Med. Armor Plating 1656 | -9/Storage | Discovered new exit (range 9) 1669 | -9/Storage | Identified exit to Materials 2359 | -9/Storage | Met a pair of Derelict thieves 2651 | -9/Storage | Entered Materials 2651 | -8/Materials | Accompanied by 1 ally 2651 | -8/Materials | Evolved 2 slots: Utility x1, Weapon x1 3086 | -8/Materials | Identified exit to Factory 3518 | -8/Materials | Entered Factory 3518 | -7/Factory | Evolved 2 slots: Power x1, Propulsion x1 3811 | -7/Factory | Build established: Gunner 4107 | -7/Factory | Lost 5 parts (2p2n1u) 4418 | -7/Factory | Build established: Mutant 4500 | -7/Factory | Self-destructed Last Messages --------------- 04127_ G-47 Trooper knocked back. 04130_ G-47 Trooper destroyed. 04133_ G-47 Trooper knocked back. 04142_ System corrupted: Heat flow error (+204). 04142_ G-47 Trooper knocked back. 04148_ Destroyed Particle Gun. 04148_ G-47 Trooper Imp. Heat Sink blasted off. 04148_ G-47 Trooper knocked back. 04154_ R-06 Scavenger collects Imp. Heat Sink. 04154_ Arm. Treads destroyed. 04154_ G-47 Trooper destroyed. 04155_ R-06 Scavenger collects Particle Gun. 04161_ R-06 Scavenger collects Aluminum Leg. 04162_ Acquired 3 matter. 04168_ K-01 Serf collects debris. 04187_ Acquired Hrd. Light Armor Plating. 04188_ K-01 Serf collects debris. 04436_ System corrupted: FCS attempts to trigger Imp. Assault Rifle. Map ----- +----------------------------------------------------+ | ??????# """" # """" # #???????????????????? | | ??????# """" # """" + #???????????????????? | | ??????# """" # """" # #???????????????????? | | ??????# """" %# """" # #???????????????????? | | ??????# """" %+ """" # #???????????????????? | | ??????# # """" # #???????????????????? | | ??????# # """" # #???????????????????? | | ??????#####+#### # #???????????????????? | | ??????????# #??# """" # ########????????????? | | ??????????# #### """" # + #????????????? | | ??????????# + """" # # "S #????????????? | | ??????????###### """" # # """ #????????????? | | ???????????????#[ """" # # "" #????????????? | | ???????????????# """" # # #????????????? | | ???????????????# """" # # #????????????? | | ???????????????# # + #????????????? | | ???????????????######### # #????????????? | | ?????????????########### #/! #????????????? | | ?????????????# # #[ #????????????? | | ?????????????# # # #????????????? | | ?????????????? # # #????????????? | | ?????????????# """ """ # + [ #????????????? | | ?????????????# """ """ + ########????????????? | | ?????????????# """ """ # #???????????????????? | | ?????????????# # #???????????????????? | | ?????????????# + @ #???????????????????? | | ?????????????#############Y###???????????????????? | | ???????????????????????? ????????????????????? | | ?????????????????????? """" ??????????????????? | | ????????????????????Y """" ????????????????? | | ??????????????????#"" """" ??????????????? | | ??????????????????# """" #?????????????? | | ??????????????????# """" ]! #?????????????? | | ?????????????????# ????? ]! #?????????????? | | ?????????????????## ?????? !! #?????????????? | | ??????????????????# ??????????? #?????????????? | | ??????????????????####???????????????????????????? | | | | | | | | | | | | | | | | | | | | | | | | | | | +----------------------------------------------------+ Best States ------------- Heat Dissipation 48 Energy Generation 23 Energy Capacity 315 Matter Stores 300 Matter Capacity 300 Sight Range 16 Terrain Scan Density 10 Armor Coverage 225 Evasion (%) 40 Recoil Reduction 3 Offensive Hacking 10 Item Schematics ----------------- None Robot Schematics ------------------ None Fabricated ------------ Nothing Alien Tech Used ----------------- None Achievements -------------- None Challenges ------------ None Game ------ Seed ShieldSpectralBeam Manual? 0 Play Time 00:27:56 Cumulative 17.3 hours Start 2025.03.03 @ 00:59:06 End 2025.03.03 @ 13:45:56 Sessions 2 Manual Loads 0 Difficulty Rogue Special Mode None Game No. 55 Rogue 55 Adventurer 0 Explorer 0 Win Type - Total 0 Types 0/0/0/0/0/0/0/0/0 Lore% 10 Gallery% 17 Achievement% 17 Wizard Run 0 Options --------- Layout 1 ASCII 0 Keyboard 0 Movement Mouse Keybinds 0 Fullscreen 2 Font 24/Smallcaps Map View 50x35 Zoom Use 0% Tactical HUD 1 Map Filters NONE Filters NONE Steam 1 RUN: 873df2be-3749-4dc4-9722-57045e5688eb